[Event "*** Titled Tuesday 3|2 Blitz"]
[Site "Chess.com"]
[Date "2017.03.07"]
[Round "10"]
[White "ChristopherYoo"]
[Black "MatBobula"]
[Result "0-1"]
[WhiteElo "2151"]
[BlackElo "2281"]
[TimeControl "180+2"]
[EndTime "15:27:26 PST"]
[Termination "MatBobula won by resignation"]

1. e4 {[%clk 0:03:02]} 1... e6 {[%clk 0:02:56.5]} 2. d4 {[%clk 0:03:02.3]} 2...
d5 {[%clk 0:02:57.7]} 3. Nc3 {[%clk 0:03:02.9]} 3... Bb4 {[%clk 0:02:57.5]} 4.
e5 {[%clk 0:03:03.5]} 4... c5 {[%clk 0:02:58.3]} 5. a3 {[%clk 0:03:03.5]} 5...
Bxc3+ {[%clk 0:02:59.2]} 6. bxc3 {[%clk 0:03:04.8]} 6... Ne7 {[%clk 0:03:00.3]}
7. Qg4 {[%clk 0:03:05.5]} 7... O-O {[%clk 0:03:00.7]} 8. Nf3 {[%clk 0:02:54.6]}
8... Nbc6 {[%clk 0:02:57.9]} 9. Bd3 {[%clk 0:02:52.8]} 9... f5 {[%clk
0:02:58.6]} 10. Qh5 {[%clk 0:02:39]} 10... Qe8 {[%clk 0:02:45.8]} 11. Qxe8
{[%clk 0:02:33.5]} 11... Rxe8 {[%clk 0:02:47.7]} 12. h4 {[%clk 0:02:24.1]} 12...
Bd7 {[%clk 0:02:43.2]} 13. h5 {[%clk 0:02:21.6]} 13... h6 {[%clk 0:02:43.1]} 14.
dxc5 {[%clk 0:02:00.1]} 14... Na5 {[%clk 0:02:40.9]} 15. Be3 {[%clk 0:01:58.6]}
15... Rac8 {[%clk 0:02:36.2]} 16. Rh4 {[%clk 0:01:56.8]} 16... Rf8 {[%clk
0:02:13.9]} 17. g3 {[%clk 0:01:44.8]} 17... Rc7 {[%clk 0:02:08]} 18. Rb1 {[%clk
0:01:22.8]} 18... a6 {[%clk 0:02:07.7]} 19. Rhb4 {[%clk 0:01:14.9]} 19... Bc8
{[%clk 0:01:55]} 20. Rb6 {[%clk 0:00:58.9]} 20... Nec6 {[%clk 0:01:54.6]} 21.
Nd4 {[%clk 0:00:52.9]} 21... Re8 {[%clk 0:01:35.1]} 22. Nxc6 {[%clk 0:00:51]}
22... Nxc6 {[%clk 0:01:32.4]} 23. f4 {[%clk 0:00:46.6]} 23... Nb8 {[%clk
0:01:33.3]} 24. Rd6 {[%clk 0:00:21]} 24... Nd7 {[%clk 0:01:24.6]} 25. Kd2 {[%clk
0:00:15.5]} 25... Nxc5 {[%clk 0:01:22.9]} 26. Bxc5 {[%clk 0:00:15.8]} 26... Rxc5
{[%clk 0:01:24.8]} 27. a4 {[%clk 0:00:15.2]} 27... Rc7 {[%clk 0:01:19.7]} 28.
Rbb6 {[%clk 0:00:15.3]} 28... Kf7 {[%clk 0:01:19.2]} 29. Rb4 {[%clk 0:00:14.8]}
29... Ke7 {[%clk 0:01:19.5]} 30. Rbb6 {[%clk 0:00:12.6]} 30... Bd7 {[%clk
0:01:19.6]} 31. a5 {[%clk 0:00:12.6]} 31... Rec8 {[%clk 0:01:16.1]} 32. Rb3
{[%clk 0:00:10.6]} 32... Bc6 {[%clk 0:01:16.9]} 33. Ke3 {[%clk 0:00:10.7]} 33...
Rd7 {[%clk 0:01:13.5]} 34. Rxd7+ {[%clk 0:00:11.2]} 34... Kxd7 {[%clk
0:01:15.1]} 35. Kd4 {[%clk 0:00:12.7]} 35... g6 {[%clk 0:00:58.4]} 36. hxg6
{[%clk 0:00:08.3]} 36... Rg8 {[%clk 0:00:58.3]} 37. g4 {[%clk 0:00:08.7]} 37...
fxg4 {[%clk 0:00:56.7]} 38. f5 {[%clk 0:00:09.8]} 38... exf5 {[%clk 0:00:55.5]}
39. Bxf5+ {[%clk 0:00:10.5]} 39... Ke7 {[%clk 0:00:56.9]} 40. Rb1 {[%clk
0:00:06.2]} 40... h5 {[%clk 0:00:56.6]} 41. Rh1 {[%clk 0:00:06.3]} 41... Bd7
{[%clk 0:00:49.5]} 42. Rxh5 {[%clk 0:00:05.4]} 42... Bxf5 {[%clk 0:00:48.4]} 43.
Rxf5 {[%clk 0:00:06.3]} 43... Rxg6 {[%clk 0:00:49.6]} 44. Kxd5 {[%clk
0:00:07.3]} 44... g3 {[%clk 0:00:47.1]} 45. Rf1 {[%clk 0:00:08.2]} 45... g2
{[%clk 0:00:48.6]} 46. Rg1 {[%clk 0:00:09.2]} 46... Rg5 {[%clk 0:00:43.1]} 47.
Ke4 {[%clk 0:00:09.9]} 47... Ke6 {[%clk 0:00:43.9]} 48. Kf4 {[%clk 0:00:09.8]}
48... Rf5+ {[%clk 0:00:45.1]} 49. Kg4 {[%clk 0:00:10.7]} 49... Rf2 {[%clk
0:00:45.4]} 50. Kg3 {[%clk 0:00:10.8]} 50... Rxc2 {[%clk 0:00:46.1]} 51. Re1
{[%clk 0:00:07.4]} 51... Re2 {[%clk 0:00:39.4]} 52. Rb1 {[%clk 0:00:07.2]} 52...
Kxe5 {[%clk 0:00:25.7]} 53. Kh2 {[%clk 0:00:08.4]} 53... Kd5 {[%clk 0:00:21.5]}
54. Rxb7 {[%clk 0:00:08.8]} 54... Kc4 {[%clk 0:00:22.1]} 55. Rc7+ {[%clk
0:00:08.7]} 55... Kb5 {[%clk 0:00:22.8]} 56. Rg7 {[%clk 0:00:06]} 56... Kxa5
{[%clk 0:00:22.9]} 57. Rg5+ {[%clk 0:00:06.3]} 57... Kb6 {[%clk 0:00:23.3]} 58.
c4 {[%clk 0:00:06.6]} 58... a5 {[%clk 0:00:23.4]} 59. Rb5+ {[%clk 0:00:05]}
59... Ka6 {[%clk 0:00:24.8]} 60. Rb8 {[%clk 0:00:06]} 60... Rc2 {[%clk
0:00:24.7]} 61. Ra8+ {[%clk 0:00:05.5]} 61... Kb6 {[%clk 0:00:25.4]} 62. Rb8+
{[%clk 0:00:06]} 62... Ka7 {[%clk 0:00:24.8]} 63. Rb5 {[%clk 0:00:06.5]} 63...
Ka6 {[%clk 0:00:26.2]} 64. Rc5 {[%clk 0:00:06.5]} 64... a4 {[%clk 0:00:25.2]}
65. Rc8 {[%clk 0:00:06.7]} 65... Ka5 {[%clk 0:00:26]} 66. c5 {[%clk 0:00:05.5]}
66... Kb5 {[%clk 0:00:25.2]} 67. c6 {[%clk 0:00:04]} 67... Rxc6 {[%clk
0:00:23.9]} 68. Rb8+ {[%clk 0:00:04.3]} 68... Rb6 {[%clk 0:00:23.9]} 69. Ra8
{[%clk 0:00:05.2]} 69... Rg6 {[%clk 0:00:21.8]} 70. Kg1 {[%clk 0:00:05.9]} 70...
Kb4 {[%clk 0:00:22.8]} 71. Rb8+ {[%clk 0:00:06.9]} 71... Ka3 {[%clk 0:00:23.5]}
72. Rd8 {[%clk 0:00:07.6]} 72... Ka2 {[%clk 0:00:24.5]} 73. Rd1 {[%clk
0:00:08.2]} 73... a3 {[%clk 0:00:25.4]} 74. Rd2+ {[%clk 0:00:08.4]} 74... Kb3
{[%clk 0:00:26.3]} 75. Rd3+ {[%clk 0:00:09.4]} 75... Kb2 {[%clk 0:00:27.7]} 76.
Rd2+ {[%clk 0:00:10.3]} 76... Kc3 {[%clk 0:00:28.1]} 77. Rd7 {[%clk 0:00:11]}
77... a2 {[%clk 0:00:29]} 78. Ra7 {[%clk 0:00:11.5]} 78... Kb2 {[%clk
0:00:29.5]} 79. Rb7+ {[%clk 0:00:12.5]} 79... Ka1 {[%clk 0:00:29.8]} 80. Ra7
{[%clk 0:00:13.1]} 80... Rg4 {[%clk 0:00:30.7]} 81. Rb7 {[%clk 0:00:13.5]} 81...
Rg3 {[%clk 0:00:27.1]} 82. Rb4 {[%clk 0:00:13.5]} 82... Rc3 {[%clk 0:00:27.3]}
83. Kxg2 {[%clk 0:00:12.7]} 83... Rc2+ {[%clk 0:00:28.1]} 84. Kf3 {[%clk
0:00:12.9]} 84... Rb2 {[%clk 0:00:29.3]} 85. Rh4 {[%clk 0:00:09.8]} 85... Kb1
{[%clk 0:00:22.9]} 86. Rh1+ {[%clk 0:00:09.8]} 86... Kc2 {[%clk 0:00:24.1]} 87.
Ke3 {[%clk 0:00:09.5]} 87... Rb1 {[%clk 0:00:24]} 88. Rh2+ {[%clk 0:00:10.5]}
88... Kb3 {[%clk 0:00:25.1]} 89. Rh8 {[%clk 0:00:06.3]} 89... a1=Q {[%clk
0:00:24.9]} 90. Rb8+ {[%clk 0:00:07.2]} 90... Kc4 {[%clk 0:00:26]} 91. Rc8+
{[%clk 0:00:07.8]} 91... Kd5 {[%clk 0:00:27]} 92. Rd8+ {[%clk 0:00:07.9]} 92...
Ke6 {[%clk 0:00:28.2]} 93. Re8+ {[%clk 0:00:08.5]} 93... Kd7 {[%clk 0:00:29.4]}
94. Re4 {[%clk 0:00:10.4]} 94... Re1+ {[%clk 0:00:29.8]} 95. Kf4 {[%clk
0:00:12.3]} 95... Qf6+ {[%clk 0:00:30]} 0-1

[Event "*** Titled Tuesday 3|2 Blitz"]
[Site "Chess.com"]
[Date "2017.03.07"]
[Round "10"]
[White "Alex_Molchanov"]
[Black "SCIM"]
[Result "1/2-1/2"]
[WhiteElo "2463"]
[BlackElo "2321"]
[TimeControl "180+2"]
[EndTime "15:27:42 PST"]
[Termination "Game drawn - insufficient material"]

1. c4 {[%clk 0:03:02]} 1... g6 {[%clk 0:02:56.7]} 2. Nc3 {[%clk 0:03:00.4]} 2...
c5 {[%clk 0:02:54.5]} 3. g3 {[%clk 0:02:58.6]} 3... Nc6 {[%clk 0:02:54.9]} 4.
Bg2 {[%clk 0:03:00.1]} 4... Bg7 {[%clk 0:02:55.9]} 5. e3 {[%clk 0:03:01.8]} 5...
e6 {[%clk 0:02:56]} 6. Nge2 {[%clk 0:03:03.1]} 6... Nge7 {[%clk 0:02:55.8]} 7.
O-O {[%clk 0:02:59.5]} 7... O-O {[%clk 0:02:55.3]} 8. Nf4 {[%clk 0:03:01.1]}
8... b6 {[%clk 0:02:50.4]} 9. Nb5 {[%clk 0:02:47.5]} 9... d5 {[%clk 0:02:47.2]}
10. d3 {[%clk 0:02:37.9]} 10... Bb7 {[%clk 0:02:41.5]} 11. Rb1 {[%clk
0:02:17.4]} 11... a6 {[%clk 0:02:23.7]} 12. Na3 {[%clk 0:02:17.9]} 12... dxc4
{[%clk 0:02:20.7]} 13. Nxc4 {[%clk 0:02:18.2]} 13... b5 {[%clk 0:02:21.6]} 14.
Nd2 {[%clk 0:02:14]} 14... e5 {[%clk 0:02:15.4]} 15. Ne2 {[%clk 0:02:11.5]}
15... Qxd3 {[%clk 0:02:15]} 16. Be4 {[%clk 0:02:04.8]} 16... Qd7 {[%clk
0:02:14]} 17. Nb3 {[%clk 0:02:06.2]} 17... Qxd1 {[%clk 0:02:02.4]} 18. Rxd1
{[%clk 0:02:08.1]} 18... c4 {[%clk 0:02:03.1]} 19. Nc5 {[%clk 0:02:09.2]} 19...
Bc8 {[%clk 0:02:03.7]} 20. Rd6 {[%clk 0:02:01.6]} 20... Bf5 {[%clk 0:01:49.6]}
21. Bxc6 {[%clk 0:01:36]} 21... Bxb1 {[%clk 0:01:38.9]} 22. Bxa8 {[%clk
0:01:37.1]} 22... Rxa8 {[%clk 0:01:39.6]} 23. Nc3 {[%clk 0:01:36.3]} 23... b4
{[%clk 0:01:32.5]} 24. Nxb1 {[%clk 0:01:36.2]} 24... a5 {[%clk 0:01:28]} 25. Nb7
{[%clk 0:01:21.4]} 25... e4 {[%clk 0:01:10]} 26. Rd8+ {[%clk 0:01:16.3]} 26...
Rxd8 {[%clk 0:01:09.7]} 27. Nxd8 {[%clk 0:01:18.2]} 27... Nd5 {[%clk 0:01:09]}
28. Nc6 {[%clk 0:01:15.7]} 28... a4 {[%clk 0:01:08.3]} 29. Kf1 {[%clk
0:01:11.7]} 29... f5 {[%clk 0:00:54.3]} 30. Ke2 {[%clk 0:01:09]} 30... h5 {[%clk
0:00:51.2]} 31. Na5 {[%clk 0:00:58.6]} 31... c3 {[%clk 0:00:40.5]} 32. bxc3
{[%clk 0:00:59.4]} 32... Bxc3 {[%clk 0:00:41.9]} 33. Bd2 {[%clk 0:00:52.1]}
33... Bxd2 {[%clk 0:00:38]} 34. Kxd2 {[%clk 0:00:51]} 34... Kf7 {[%clk
0:00:36.1]} 35. a3 {[%clk 0:00:41.2]} 35... bxa3 {[%clk 0:00:31.4]} 36. Nxa3
{[%clk 0:00:39.5]} 36... Kf6 {[%clk 0:00:31.7]} 37. N5c4 {[%clk 0:00:39.1]}
37... Kg5 {[%clk 0:00:30.7]} 38. h4+ {[%clk 0:00:37]} 38... Kg4 {[%clk
0:00:30.7]} 39. Ne5+ {[%clk 0:00:34.3]} 39... Kh3 {[%clk 0:00:31.3]} 40. Nxg6
{[%clk 0:00:33.8]} 40... Nf6 {[%clk 0:00:30.4]} 41. Ne7 {[%clk 0:00:26.2]} 41...
Kg2 {[%clk 0:00:28.9]} 42. Ke2 {[%clk 0:00:21.5]} 42... Ng4 {[%clk 0:00:22.8]}
43. Nxf5 {[%clk 0:00:22.8]} 43... Nxf2 {[%clk 0:00:23.2]} 44. Nc4 {[%clk
0:00:24.2]} 44... Nd3 {[%clk 0:00:22.6]} 45. Ng7 {[%clk 0:00:21.5]} 45... Kxg3
{[%clk 0:00:21.2]} 46. Nxh5+ {[%clk 0:00:23]} 46... Kxh4 {[%clk 0:00:20.5]} 47.
Nf6 {[%clk 0:00:24.2]} 47... Nc5 {[%clk 0:00:20.3]} 48. Kd2 {[%clk 0:00:21.6]}
48... Kg3 {[%clk 0:00:19.6]} 49. Kc3 {[%clk 0:00:21.6]} 49... Kf3 {[%clk
0:00:18.9]} 50. Kb4 {[%clk 0:00:18.1]} 50... Nd3+ {[%clk 0:00:17.1]} 51. Kxa4
{[%clk 0:00:18.7]} 51... Nb2+ {[%clk 0:00:17.3]} 52. Nxb2 {[%clk 0:00:17.1]}
52... Kxe3 {[%clk 0:00:18.4]} 53. Kb3 {[%clk 0:00:17.8]} 53... Kd4 {[%clk
0:00:18.5]} 54. Kc2 {[%clk 0:00:17]} 54... e3 {[%clk 0:00:19.2]} 55. Nd3 {[%clk
0:00:17.1]} 55... e2 {[%clk 0:00:20]} 56. Ne1 {[%clk 0:00:18.7]} 56... Ke3
{[%clk 0:00:20.6]} 57. Nd5+ {[%clk 0:00:19.1]} 57... Kf2 {[%clk 0:00:21.4]} 58.
Kd2 {[%clk 0:00:20.6]} 58... Kg3 {[%clk 0:00:22.4]} 59. Ke3 {[%clk 0:00:21]}
59... Kg4 {[%clk 0:00:23.3]} 60. Nc3 {[%clk 0:00:19.8]} 60... Kf5 {[%clk
0:00:23.5]} 61. Ne4 {[%clk 0:00:21.1]} 61... Ke5 {[%clk 0:00:24.4]} 62. Nf2
{[%clk 0:00:22]} 62... Kd5 {[%clk 0:00:25.4]} 63. Nfd3 {[%clk 0:00:23.4]} 63...
Kc6 {[%clk 0:00:25.3]} 64. Kd4 {[%clk 0:00:24.7]} 64... Kd6 {[%clk 0:00:26.5]}
65. Nc5 {[%clk 0:00:25.4]} 65... Kc6 {[%clk 0:00:27.1]} 66. Kc4 {[%clk
0:00:26.1]} 66... Kd6 {[%clk 0:00:27.9]} 67. Kd4 {[%clk 0:00:26.4]} 67... Kc6
{[%clk 0:00:29]} 68. Ne4 {[%clk 0:00:27.8]} 68... Kd7 {[%clk 0:00:28.1]} 69. Kd5
{[%clk 0:00:28.7]} 69... Ke7 {[%clk 0:00:29.4]} 70. Ke5 {[%clk 0:00:28.6]} 70...
Kd7 {[%clk 0:00:30.3]} 71. Nd6 {[%clk 0:00:29.9]} 71... Ke7 {[%clk 0:00:31.1]}
72. Nf5+ {[%clk 0:00:28.5]} 72... Kd7 {[%clk 0:00:31.7]} 73. Kd5 {[%clk
0:00:29.5]} 73... Kc7 {[%clk 0:00:32]} 74. Ke6 {[%clk 0:00:27]} 74... Kc6 {[%clk
0:00:32.7]} 75. Ke5 {[%clk 0:00:28.3]} 75... Kc5 {[%clk 0:00:33.5]} 76. Nd4
{[%clk 0:00:29]} 76... Kc4 {[%clk 0:00:33.9]} 77. Ke4 {[%clk 0:00:30.6]} 77...
Kc3 {[%clk 0:00:34.3]} 78. Ndf3 {[%clk 0:00:30.1]} 78... Kc4 {[%clk 0:00:35.1]}
79. Ke5 {[%clk 0:00:31.4]} 79... Kc5 {[%clk 0:00:36.1]} 80. Nd2 {[%clk 0:00:33]}
80... Kc6 {[%clk 0:00:36.8]} 81. Nd3 {[%clk 0:00:33.9]} 81... Kb5 {[%clk
0:00:36.8]} 82. Kd5 {[%clk 0:00:34.3]} 82... Kb6 {[%clk 0:00:36.6]} 83. Nc4+
{[%clk 0:00:33.1]} 83... Kb5 {[%clk 0:00:37.3]} 84. Nce5 {[%clk 0:00:31.5]}
84... e1=Q {[%clk 0:00:36]} 85. Nxe1 {[%clk 0:00:32.1]} 85... Kb4 {[%clk
0:00:36.8]} 86. Kd4 {[%clk 0:00:32.7]} 86... Kb5 {[%clk 0:00:37.6]} 87. Nc4
{[%clk 0:00:33.9]} 87... Kb4 {[%clk 0:00:38.1]} 88. Nd3+ {[%clk 0:00:35.4]}
88... Kb5 {[%clk 0:00:38.8]} 89. Nd6+ {[%clk 0:00:35.8]} 89... Kc6 {[%clk
0:00:39.5]} 90. Ne4 {[%clk 0:00:36.9]} 90... Kb5 {[%clk 0:00:39.4]} 91. Kd5
{[%clk 0:00:38.3]} 91... Kb6 {[%clk 0:00:40.3]} 92. Nec5 {[%clk 0:00:38]} 92...
Kb5 {[%clk 0:00:40.6]} 93. Ne5 {[%clk 0:00:39.7]} 93... Kb4 {[%clk 0:00:41.2]}
94. Kd4 {[%clk 0:00:39.9]} 94... Kb5 {[%clk 0:00:42]} 95. Ncd3 {[%clk
0:00:41.5]} 95... Kb6 {[%clk 0:00:42.2]} 96. Nf4 {[%clk 0:00:42.8]} 96... Kc7
{[%clk 0:00:42.6]} 97. Kc5 {[%clk 0:00:42.2]} 97... Kb7 {[%clk 0:00:39.8]} 98.
Nd5 {[%clk 0:00:42.6]} 98... Kc8 {[%clk 0:00:40.4]} 99. Kd6 {[%clk 0:00:40.1]}
99... Kb7 {[%clk 0:00:40.8]} 100. Nc6 {[%clk 0:00:39]} 100... Ka6 {[%clk
0:00:39.2]} 101. Nc3 {[%clk 0:00:39.9]} 101... Kb6 {[%clk 0:00:38.6]} 102. Kd5
{[%clk 0:00:39.7]} 102... Kc7 {[%clk 0:00:38.5]} 103. Nb5+ {[%clk 0:00:39.6]}
103... Kb6 {[%clk 0:00:39]} 104. Nbd4 {[%clk 0:00:41.2]} 104... Kc7 {[%clk
0:00:39.5]} 105. Ke6 {[%clk 0:00:42.7]} 105... Kb6 {[%clk 0:00:40.2]} 106. Kd6
{[%clk 0:00:44.3]} 106... Kb7 {[%clk 0:00:40.6]} 107. Na5+ {[%clk 0:00:30.8]}
107... Kb6 {[%clk 0:00:39.3]} 108. Nab3 {[%clk 0:00:32.4]} 108... Kb7 {[%clk
0:00:38.7]} 109. Nc5+ {[%clk 0:00:30.4]} 109... Kb6 {[%clk 0:00:39.1]} 110. Kd5
{[%clk 0:00:30.7]} 110... Kc7 {[%clk 0:00:39.3]} 111. Na4 {[%clk 0:00:30.3]}
111... Kd7 {[%clk 0:00:39.7]} 112. Nb6+ {[%clk 0:00:27.7]} 112... Kc7 {[%clk
0:00:40.2]} 113. Na8+ {[%clk 0:00:29]} 113... Kb7 {[%clk 0:00:39.1]} 114. Nc6
{[%clk 0:00:30.7]} 114... Kxa8 {[%clk 0:00:38.3]} 1/2-1/2